[Event "Titled Tuesday Blitz February 14 Late 2023"]
[White "Fan_Of_Chucky"]
[Black "Yuan, Qingyu"]
[BlackFideId "8609772"]
[WhiteElo "2398"]
[BlackElo "2373"]
[Result "0-1"]
[Round "07"]
[TimeControl "180+2"]
[Date "2023.02.14"]
[WhiteClock "0:00:10"]
[BlackClock "0:00:08"]

1. d4 {[%clk 0:03:00]}  Nf6 {[%clk 0:03:00]} 2. c4 {[%clk 0:03:01]}  g6 {[%clk 0:03:00]} 3. Nf3 {[%clk 0:03:02]}  Bg7 {[%clk 0:03:00]} 4. g3 {[%clk 0:03:02]}  c6 {[%clk 0:03:00]} 5. Bg2 {[%clk 0:03:02]}  d5 {[%clk 0:03:01]} 6. cxd5 {[%clk 0:03:03]}  cxd5 {[%clk 0:03:02]} 7. Ne5 {[%clk 0:03:04]}  O-O {[%clk 0:03:01]} 8. O-O {[%clk 0:03:04]}  Bf5 {[%clk 0:02:58]} 9. Nc3 {[%clk 0:03:02]}  Ne4 {[%clk 0:02:53]} 10. Nxe4 {[%clk 0:02:29]}  dxe4 {[%clk 0:02:23]} 11. Be3 {[%clk 0:02:23]}  Nd7 {[%clk 0:02:15]} 12. Nxd7 {[%clk 0:02:17]}  Qxd7 {[%clk 0:02:15]} 13. Qd2 {[%clk 0:01:53]}  Rfd8 {[%clk 0:02:11]} 14. Rfd1 {[%clk 0:01:54]}  Qd5 {[%clk 0:02:02]} 15. b3 {[%clk 0:01:40]}  Rac8 {[%clk 0:02:00]} 16. Rac1 {[%clk 0:01:27]}  Rxc1 {[%clk 0:01:24]} 17. Qxc1 {[%clk 0:01:28]}  e5 {[%clk 0:01:21]} 18. Rd2 {[%clk 0:01:03]}  exd4 {[%clk 0:01:13]} 19. Bxd4 {[%clk 0:01:04]}  Bxd4 {[%clk 0:00:44]} 20. e3 {[%clk 0:01:01]}  Qe5 {[%clk 0:00:37]} 21. exd4 {[%clk 0:00:53]}  Rxd4 {[%clk 0:00:28]} 22. Qc3 {[%clk 0:00:34]}  Rd5 {[%clk 0:00:16]} 23. Qxe5 {[%clk 0:00:35]}  Rxe5 {[%clk 0:00:16]} 24. Rd8+ {[%clk 0:00:34]}  Kg7 {[%clk 0:00:16]} 25. Rb8 {[%clk 0:00:24]}  Re7 {[%clk 0:00:15]} 26. Kf1 {[%clk 0:00:18]}  b6 {[%clk 0:00:07]} 27. Rd8 {[%clk 0:00:15]}  Rc7 {[%clk 0:00:07]} 28. Ke2 {[%clk 0:00:14]}  Rc2+ {[%clk 0:00:07]} 29. Rd2 {[%clk 0:00:15]}  Rc3 {[%clk 0:00:04]} 30. h3 {[%clk 0:00:13]}  h5 {[%clk 0:00:04]} 31. Rd4 {[%clk 0:00:08]}  Rc2+ {[%clk 0:00:04]} 32. Rd2 {[%clk 0:00:09]}  Rc3 {[%clk 0:00:03]} 33. Rd4 {[%clk 0:00:09]}  Kf6 {[%clk 0:00:04]} 34. Bxe4 {[%clk 0:00:08]}  Bxe4 {[%clk 0:00:04]} 35. Rxe4 {[%clk 0:00:09]}  Rc2+ {[%clk 0:00:04]} 36. Ke3 {[%clk 0:00:07]}  Rxa2 {[%clk 0:00:05]} 37. Rc4 {[%clk 0:00:06]}  Ra3 {[%clk 0:00:04]} 38. Rc3 {[%clk 0:00:05]}  Kg7 {[%clk 0:00:04]} 39. Ke2 {[%clk 0:00:04]}  a5 {[%clk 0:00:04]} 40. Kd2 {[%clk 0:00:02]}  Ra2+ {[%clk 0:00:04]} 41. Ke3 {[%clk 0:00:02]}  Ra3 {[%clk 0:00:04]} 42. Kd2 {[%clk 0:00:02]}  Kh7 {[%clk 0:00:04]} 43. Kc2 {[%clk 0:00:02]}  Ra2+ {[%clk 0:00:04]} 44. Kd3 {[%clk 0:00:02]}  Rxf2 {[%clk 0:00:05]} 45. Rc6 {[%clk 0:00:03]}  Rf3+ {[%clk 0:00:04]} 46. Kc4 {[%clk 0:00:03]}  Rxg3 {[%clk 0:00:03]} 47. Rxb6 {[%clk 0:00:04]}  Rxh3 {[%clk 0:00:03]} 48. Ra6 {[%clk 0:00:05]}  Rh4+ {[%clk 0:00:04]} 49. Kc5 {[%clk 0:00:05]}  Rb4 {[%clk 0:00:04]} 50. Rxa5 {[%clk 0:00:05]}  Rxb3 {[%clk 0:00:04]} 51. Ra7 {[%clk 0:00:05]}  Kg7 {[%clk 0:00:04]} 52. Kd4 {[%clk 0:00:06]}  Rf3 {[%clk 0:00:05]} 53. Ke4 {[%clk 0:00:07]}  Rf5 {[%clk 0:00:05]} 54. Ke3 {[%clk 0:00:07]}  h4 {[%clk 0:00:06]} 55. Ra1 {[%clk 0:00:08]}  Kh6 {[%clk 0:00:06]} 56. Rh1 {[%clk 0:00:09]}  Kh5 {[%clk 0:00:07]} 57. Ke4 {[%clk 0:00:09]}  Rg5 {[%clk 0:00:07]} 58. Rg1 {[%clk 0:00:10]}  Rxg1 {[%clk 0:00:08]} 0-1


[Site "https://www.chess.com"]

[Event "Titled Tuesday Blitz February 14 Late 2023"]
[White "Fiorito, Francisco"]
[Black "Bjelobrk, Igor"]
[WhiteFideId "180165"]
[BlackFideId "4300726"]
[WhiteElo "2305"]
[BlackElo "2403"]
[Result "1-0"]
[Round "07"]
[TimeControl "180+2"]
[Date "2023.02.14"]
[WhiteClock "0:00:19"]
[BlackClock "0:00:10"]

1. d4 {[%clk 0:03:00]}  e6 {[%clk 0:02:51]} 2. Nc3 {[%clk 0:03:00]}  d5 {[%clk 0:02:50]} 3. Bf4 {[%clk 0:03:00]}  Bb4 {[%clk 0:02:47]} 4. Qd3 {[%clk 0:02:58]}  Nf6 {[%clk 0:02:27]} 5. a3 {[%clk 0:02:57]}  Bd6 {[%clk 0:02:26]} 6. Bxd6 {[%clk 0:02:55]}  cxd6 {[%clk 0:02:24]} 7. e3 {[%clk 0:02:52]}  O-O {[%clk 0:02:22]} 8. Nf3 {[%clk 0:02:52]}  b6 {[%clk 0:02:22]} 9. Qd2 {[%clk 0:02:51]}  Ba6 {[%clk 0:02:16]} 10. Bxa6 {[%clk 0:02:49]}  Nxa6 {[%clk 0:02:17]} 11. h3 {[%clk 0:02:46]}  Rc8 {[%clk 0:02:16]} 12. O-O {[%clk 0:02:46]}  Nb8 {[%clk 0:02:15]} 13. a4 {[%clk 0:02:44]}  Nc6 {[%clk 0:02:15]} 14. Rfe1 {[%clk 0:02:39]}  Na5 {[%clk 0:02:14]} 15. Nb5 {[%clk 0:02:33]}  a6 {[%clk 0:02:13]} 16. Na3 {[%clk 0:02:34]}  Ne4 {[%clk 0:02:11]} 17. Qb4 {[%clk 0:02:33]}  Nc4 {[%clk 0:02:04]} 18. Nxc4 {[%clk 0:02:31]}  Rxc4 {[%clk 0:02:04]} 19. Qb3 {[%clk 0:02:31]}  Qc7 {[%clk 0:02:03]} 20. c3 {[%clk 0:02:32]}  Rb8 {[%clk 0:01:56]} 21. Red1 {[%clk 0:02:28]}  b5 {[%clk 0:01:55]} 22. axb5 {[%clk 0:02:29]}  axb5 {[%clk 0:01:55]} 23. Nd2 {[%clk 0:02:23]}  Nxd2 {[%clk 0:01:55]} 24. Rxd2 {[%clk 0:02:24]}  b4 {[%clk 0:01:55]} 25. Ra4 {[%clk 0:01:54]}  g6 {[%clk 0:01:33]} 26. Rxb4 {[%clk 0:01:50]}  Rcxb4 {[%clk 0:01:23]} 27. cxb4 {[%clk 0:01:50]}  Rb5 {[%clk 0:00:49]} 28. Rc2 {[%clk 0:01:30]}  Qb6 {[%clk 0:00:44]} 29. Qa4 {[%clk 0:01:29]}  Kg7 {[%clk 0:00:36]} 30. Rc8 {[%clk 0:01:24]}  Qb7 {[%clk 0:00:33]} 31. Rd8 {[%clk 0:01:24]}  Qb6 {[%clk 0:00:24]} 32. Rxd6 {[%clk 0:00:49]}  Qb8 {[%clk 0:00:18]} 33. Rd8 {[%clk 0:00:39]}  Qb6 {[%clk 0:00:17]} 34. Qa8 {[%clk 0:00:20]}  Rxb4 {[%clk 0:00:16]} 35. Rg8+ {[%clk 0:00:21]}  Kf6 {[%clk 0:00:17]} 36. Rh8 {[%clk 0:00:21]}  Rxb2 {[%clk 0:00:15]} 37. Rxh7 {[%clk 0:00:19]}  Rb1+ {[%clk 0:00:15]} 38. Kh2 {[%clk 0:00:20]}  Qb8+ {[%clk 0:00:16]} 39. Qxb8 {[%clk 0:00:20]}  Rxb8 {[%clk 0:00:17]} 40. Rh4 {[%clk 0:00:20]}  Rb1 {[%clk 0:00:17]} 41. Rf4+ {[%clk 0:00:21]}  Kg7 {[%clk 0:00:18]} 42. h4 {[%clk 0:00:22]}  Rc1 {[%clk 0:00:18]} 43. Kg3 {[%clk 0:00:22]}  Rc2 {[%clk 0:00:18]} 44. Kf3 {[%clk 0:00:22]}  Rb2 {[%clk 0:00:18]} 45. Rg4 {[%clk 0:00:23]}  Kh6 {[%clk 0:00:18]} 46. Rg3 {[%clk 0:00:23]}  f5 {[%clk 0:00:18]} 47. Rh3 {[%clk 0:00:23]}  Rc2 {[%clk 0:00:17]} 48. Rh1 {[%clk 0:00:23]}  Rb2 {[%clk 0:00:17]} 49. g3 {[%clk 0:00:23]}  g5 {[%clk 0:00:16]} 50. hxg5+ {[%clk 0:00:22]}  Kxg5 {[%clk 0:00:17]} 51. Rh8 {[%clk 0:00:22]}  Kf6 {[%clk 0:00:17]} 52. Rh6+ {[%clk 0:00:22]}  Kf7 {[%clk 0:00:18]} 53. Rh2 {[%clk 0:00:23]}  Ke7 {[%clk 0:00:18]} 54. Kf4 {[%clk 0:00:23]}  Kf6 {[%clk 0:00:18]} 55. Rh6+ {[%clk 0:00:23]}  Kf7 {[%clk 0:00:18]} 56. Ke5 {[%clk 0:00:21]}  Rxf2 {[%clk 0:00:19]} 57. Rf6+ {[%clk 0:00:21]}  Kg7 {[%clk 0:00:19]} 58. Kxe6 {[%clk 0:00:21]}  Rf3 {[%clk 0:00:19]} 59. Rxf5 {[%clk 0:00:17]}  Rxe3+ {[%clk 0:00:19]} 60. Kxd5 {[%clk 0:00:16]}  Rxg3 {[%clk 0:00:19]} 61. Kd6 {[%clk 0:00:17]}  Ra3 {[%clk 0:00:18]} 62. d5 {[%clk 0:00:17]}  Ra6+ {[%clk 0:00:16]} 63. Ke7 {[%clk 0:00:17]}  Ra7+ {[%clk 0:00:16]} 64. Ke6 {[%clk 0:00:18]}  Ra1 {[%clk 0:00:12]} 65. d6 {[%clk 0:00:18]}  Re1+ {[%clk 0:00:12]} 66. Kd7 {[%clk 0:00:19]}  Kg6 {[%clk 0:00:12]} 67. Rf2 {[%clk 0:00:19]}  Re5 {[%clk 0:00:11]} 68. Kc7 {[%clk 0:00:18]}  Rc5+ {[%clk 0:00:12]} 69. Kd8 {[%clk 0:00:19]}  Rc1 {[%clk 0:00:10]} 70. d7 {[%clk 0:00:19]} 1-0


[Site "https://www.chess.com"]

[Event "Titled Tuesday Blitz February 14 Late 2023"]
[White "Santos Flores, Alberto"]
[Black "Rorrer, Grayson"]
[WhiteFideId "3601234"]
[BlackFideId "30944996"]
[WhiteElo "2164"]
[BlackElo "2263"]
[Result "0-1"]
[Round "07"]
[TimeControl "180+2"]
[Date "2023.02.14"]
[WhiteClock "0:00:46"]
[BlackClock "0:01:21"]

1. e4 {[%clk 0:03:00]}  c6 {[%clk 0:02:58]} 2. d4 {[%clk 0:03:00]}  d5 {[%clk 0:02:58]} 3. Nc3 {[%clk 0:03:00]}  dxe4 {[%clk 0:02:58]} 4. Nxe4 {[%clk 0:03:01]}  Nf6 {[%clk 0:02:59]} 5. Nxf6+ {[%clk 0:03:01]}  exf6 {[%clk 0:03:00]} 6. c3 {[%clk 0:03:01]}  Bd6 {[%clk 0:02:59]} 7. Bd3 {[%clk 0:03:01]}  O-O {[%clk 0:02:59]} 8. Ne2 {[%clk 0:03:02]}  Re8 {[%clk 0:03:00]} 9. O-O {[%clk 0:03:02]}  Nd7 {[%clk 0:03:00]} 10. Ng3 {[%clk 0:03:02]}  Nf8 {[%clk 0:03:00]} 11. Qh5 {[%clk 0:02:59]}  g6 {[%clk 0:02:55]} 12. Qh6 {[%clk 0:02:57]}  Ne6 {[%clk 0:02:55]} 13. Re1 {[%clk 0:02:41]}  Bf8 {[%clk 0:02:54]} 14. Qh4 {[%clk 0:02:40]}  c5 {[%clk 0:02:34]} 15. Bb5 {[%clk 0:02:39]}  Bd7 {[%clk 0:02:32]} 16. Bxd7 {[%clk 0:02:37]}  Qxd7 {[%clk 0:02:33]} 17. dxc5 {[%clk 0:02:32]}  Nxc5 {[%clk 0:02:24]} 18. Be3 {[%clk 0:02:21]}  f5 {[%clk 0:02:20]} 19. Rad1 {[%clk 0:02:14]}  Qc6 {[%clk 0:02:08]} 20. Bd4 {[%clk 0:02:07]}  Ne6 {[%clk 0:02:04]} 21. Bf6 {[%clk 0:01:58]}  Bg7 {[%clk 0:01:54]} 22. Bxg7 {[%clk 0:01:51]}  Kxg7 {[%clk 0:01:47]} 23. Qb4 {[%clk 0:01:31]}  Rad8 {[%clk 0:01:41]} 24. Qb3 {[%clk 0:01:28]}  Nf4 {[%clk 0:01:30]} 25. f3 {[%clk 0:01:21]}  Qc5+ {[%clk 0:01:28]} 26. Kh1 {[%clk 0:01:18]}  Nd3 {[%clk 0:01:25]} 27. Rf1 {[%clk 0:00:58]}  Nf2+ {[%clk 0:01:22]} 28. Rxf2 {[%clk 0:00:59]}  Qxf2 {[%clk 0:01:22]} 29. Rf1 {[%clk 0:00:46]}  Re1 {[%clk 0:01:22]} 30. Qc4 {[%clk 0:00:46]}  Rdd1 {[%clk 0:01:21]} 0-1


[Site "https://www.chess.com"]

[Event "Titled Tuesday Blitz February 14 Late 2023"]
[White "Benmesbah, Natacha"]
[Black "Firat, Burak"]
[WhiteFideId "642002"]
[BlackFideId "6305881"]
[WhiteElo "2261"]
[BlackElo "2456"]
[Result "0-1"]
[Round "07"]
[TimeControl "180+2"]
[Date "2023.02.14"]
[WhiteClock "0:00:03"]
[BlackClock "0:01:34"]

1. e4 {[%clk 0:03:00]}  c5 {[%clk 0:03:00]} 2. Nf3 {[%clk 0:02:56]}  e6 {[%clk 0:03:00]} 3. b3 {[%clk 0:02:54]}  a6 {[%clk 0:02:57]} 4. Bb2 {[%clk 0:02:52]}  d6 {[%clk 0:02:57]} 5. c4 {[%clk 0:02:50]}  Nf6 {[%clk 0:02:57]} 6. Nc3 {[%clk 0:02:47]}  Be7 {[%clk 0:02:57]} 7. d4 {[%clk 0:02:46]}  cxd4 {[%clk 0:02:57]} 8. Nxd4 {[%clk 0:02:47]}  O-O {[%clk 0:02:57]} 9. Be2 {[%clk 0:02:46]}  b6 {[%clk 0:02:57]} 10. O-O {[%clk 0:02:45]}  Bb7 {[%clk 0:02:57]} 11. Bf3 {[%clk 0:02:39]}  Qc7 {[%clk 0:02:57]} 12. Qe2 {[%clk 0:02:35]}  Nbd7 {[%clk 0:02:57]} 13. Rac1 {[%clk 0:02:34]}  Rac8 {[%clk 0:02:57]} 14. Rfd1 {[%clk 0:02:34]}  Qb8 {[%clk 0:02:56]} 15. g3 {[%clk 0:02:33]}  Rfe8 {[%clk 0:02:56]} 16. Bg2 {[%clk 0:02:34]}  Bf8 {[%clk 0:02:56]} 17. h3 {[%clk 0:02:01]}  d5 {[%clk 0:02:56]} 18. exd5 {[%clk 0:01:01]}  exd5 {[%clk 0:02:56]} 19. Qf3 {[%clk 0:01:01]}  Ne5 {[%clk 0:02:55]} 20. Qf4 {[%clk 0:00:53]}  dxc4 {[%clk 0:02:56]} 21. bxc4 {[%clk 0:00:50]}  Bxg2 {[%clk 0:02:55]} 22. Kxg2 {[%clk 0:00:49]}  Qb7+ {[%clk 0:02:55]} 23. Kg1 {[%clk 0:00:45]}  Rxc4 {[%clk 0:02:54]} 24. Nce2 {[%clk 0:00:40]}  Rxc1 {[%clk 0:02:42]} 25. Rxc1 {[%clk 0:00:40]}  Ng6 {[%clk 0:02:43]} 26. Qd2 {[%clk 0:00:38]}  Qd7 {[%clk 0:02:35]} 27. Kh2 {[%clk 0:00:34]}  Ne4 {[%clk 0:02:34]} 28. Qe3 {[%clk 0:00:29]}  Nc5 {[%clk 0:02:28]} 29. Qf3 {[%clk 0:00:29]}  Ne5 {[%clk 0:02:28]} 30. Qg2 {[%clk 0:00:28]}  Ned3 {[%clk 0:02:27]} 31. Rb1 {[%clk 0:00:26]}  Nxb2 {[%clk 0:02:25]} 32. Rxb2 {[%clk 0:00:27]}  b5 {[%clk 0:02:25]} 33. Qf3 {[%clk 0:00:23]}  g6 {[%clk 0:02:24]} 34. Rc2 {[%clk 0:00:20]}  Qd6 {[%clk 0:02:05]} 35. Nb3 {[%clk 0:00:18]}  Ne4 {[%clk 0:01:58]} 36. Ned4 {[%clk 0:00:13]}  Bg7 {[%clk 0:01:56]} 37. Rc6 {[%clk 0:00:12]}  Qd5 {[%clk 0:01:53]} 38. Qe3 {[%clk 0:00:04]}  Qd7 {[%clk 0:01:38]} 39. Rxa6 {[%clk 0:00:03]}  h5 {[%clk 0:01:34]} 0-1


[Site "https://www.chess.com"]

[Event "Titled Tuesday Blitz February 14 Late 2023"]
[White "Kavutskiy, Konstantin"]
[Black "Tanenbaum, Zachary"]
[WhiteFideId "2026384"]
[BlackFideId "2060850"]
[WhiteElo "2414"]
[BlackElo "2261"]
[Result "1-0"]
[Round "07"]
[TimeControl "180+2"]
[Date "2023.02.14"]
[WhiteClock "0:00:12"]
[BlackClock "0:00:04"]

1. d4 {[%clk 0:03:00]}  d5 {[%clk 0:03:00]} 2. c4 {[%clk 0:03:00]}  dxc4 {[%clk 0:03:00]} 3. Nf3 {[%clk 0:02:59]}  Nf6 {[%clk 0:02:59]} 4. e3 {[%clk 0:02:59]}  Bg4 {[%clk 0:03:00]} 5. Bxc4 {[%clk 0:02:59]}  e6 {[%clk 0:03:00]} 6. h3 {[%clk 0:02:57]}  Bh5 {[%clk 0:03:00]} 7. O-O {[%clk 0:02:56]}  Nbd7 {[%clk 0:03:01]} 8. b3 {[%clk 0:02:56]}  Bd6 {[%clk 0:03:00]} 9. Bb2 {[%clk 0:02:56]}  O-O {[%clk 0:03:00]} 10. Be2 {[%clk 0:02:55]}  c5 {[%clk 0:02:56]} 11. Nbd2 {[%clk 0:02:47]}  Qe7 {[%clk 0:02:55]} 12. Nc4 {[%clk 0:02:45]}  Bc7 {[%clk 0:02:25]} 13. Qc2 {[%clk 0:02:32]}  Rac8 {[%clk 0:02:23]} 14. Rad1 {[%clk 0:02:28]}  Bg6 {[%clk 0:02:22]} 15. Bd3 {[%clk 0:02:16]}  b5 {[%clk 0:02:18]} 16. Nce5 {[%clk 0:02:05]}  Nxe5 {[%clk 0:01:48]} 17. dxe5 {[%clk 0:02:03]}  Nd5 {[%clk 0:01:47]} 18. Bxg6 {[%clk 0:01:55]}  hxg6 {[%clk 0:01:48]} 19. e4 {[%clk 0:01:48]}  Nb4 {[%clk 0:01:39]} 20. Qb1 {[%clk 0:01:45]}  Rfd8 {[%clk 0:01:38]} 21. a3 {[%clk 0:01:44]}  Nc6 {[%clk 0:01:38]} 22. Qc2 {[%clk 0:01:41]}  Rxd1 {[%clk 0:01:05]} 23. Rxd1 {[%clk 0:01:40]}  Rd8 {[%clk 0:01:06]} 24. Rc1 {[%clk 0:01:36]}  Bb6 {[%clk 0:01:02]} 25. Qe2 {[%clk 0:01:33]}  a6 {[%clk 0:00:59]} 26. Qe3 {[%clk 0:01:24]}  Na5 {[%clk 0:00:52]} 27. Ng5 {[%clk 0:01:19]}  Ba7 {[%clk 0:00:49]} 28. Qg3 {[%clk 0:01:16]}  Rd2 {[%clk 0:00:18]} 29. Qh4 {[%clk 0:01:09]}  Qd7 {[%clk 0:00:18]} 30. Bc3 {[%clk 0:00:38]}  Rd1+ {[%clk 0:00:17]} 31. Rxd1 {[%clk 0:00:39]}  Qxd1+ {[%clk 0:00:17]} 32. Kh2 {[%clk 0:00:40]}  Nc6 {[%clk 0:00:14]} 33. Qh7+ {[%clk 0:00:39]}  Kf8 {[%clk 0:00:14]} 34. Qh8+ {[%clk 0:00:39]}  Ke7 {[%clk 0:00:14]} 35. Qxg7 {[%clk 0:00:39]}  Nd8 {[%clk 0:00:13]} 36. Ba5 {[%clk 0:00:33]}  Bb8 {[%clk 0:00:10]} 37. Bxd8+ {[%clk 0:00:32]}  Kxd8 {[%clk 0:00:10]} 38. Qf8+ {[%clk 0:00:30]}  Kc7 {[%clk 0:00:10]} 39. Qxf7+ {[%clk 0:00:30]}  Kb6 {[%clk 0:00:09]} 40. Qxe6+ {[%clk 0:00:30]}  Ka5 {[%clk 0:00:09]} 41. Nf3 {[%clk 0:00:27]}  Qc1 {[%clk 0:00:06]} 42. g3 {[%clk 0:00:20]}  Qc3 {[%clk 0:00:06]} 43. Kg2 {[%clk 0:00:19]}  c4 {[%clk 0:00:05]} 44. b4+ {[%clk 0:00:19]}  Ka4 {[%clk 0:00:05]} 45. Qxa6+ {[%clk 0:00:20]}  Kb3 {[%clk 0:00:06]} 46. Qxb5 {[%clk 0:00:20]}  Ba7 {[%clk 0:00:06]} 47. e6 {[%clk 0:00:17]}  Qb2 {[%clk 0:00:05]} 48. h4 {[%clk 0:00:06]}  Qxf2+ {[%clk 0:00:04]} 49. Kh3 {[%clk 0:00:07]}  Qxf3 {[%clk 0:00:04]} 50. Qd5 {[%clk 0:00:07]}  Qf1+ {[%clk 0:00:03]} 51. Kg4 {[%clk 0:00:07]}  Qd3 {[%clk 0:00:03]} 52. Qxd3+ {[%clk 0:00:06]}  cxd3 {[%clk 0:00:03]} 53. e7 {[%clk 0:00:07]}  d2 {[%clk 0:00:04]} 54. e8=Q {[%clk 0:00:07]}  d1=Q+ {[%clk 0:00:04]} 55. Kg5 {[%clk 0:00:08]}  Be3+ {[%clk 0:00:04]} 56. Kxg6 {[%clk 0:00:08]}  Qg4+ {[%clk 0:00:04]} 57. Kh7 {[%clk 0:00:07]}  Qxg3 {[%clk 0:00:04]} 58. Qg8+ {[%clk 0:00:06]}  Qxg8+ {[%clk 0:00:03]} 59. Kxg8 {[%clk 0:00:07]}  Kxa3 {[%clk 0:00:01]} 60. e5 {[%clk 0:00:06]}  Kxb4 {[%clk 0:00:02]} 61. e6 {[%clk 0:00:07]}  Bc5 {[%clk 0:00:02]} 62. Kf7 {[%clk 0:00:07]}  Kb5 {[%clk 0:00:02]} 63. h5 {[%clk 0:00:07]}  Kc6 {[%clk 0:00:02]} 64. e7 {[%clk 0:00:07]}  Bxe7 {[%clk 0:00:02]} 65. Kxe7 {[%clk 0:00:08]}  Kd5 {[%clk 0:00:02]} 66. h6 {[%clk 0:00:09]}  Ke5 {[%clk 0:00:03]} 67. h7 {[%clk 0:00:10]}  Kf5 {[%clk 0:00:03]} 68. h8=Q {[%clk 0:00:11]}  Kg6 {[%clk 0:00:04]} 69. Qf6+ {[%clk 0:00:11]}  Kh7 {[%clk 0:00:03]} 70. Qg5 {[%clk 0:00:11]}  Kh8 {[%clk 0:00:03]} 71. Kf7 {[%clk 0:00:12]}  Kh7 {[%clk 0:00:04]} 72. Qh5# {[%clk 0:00:12]} 1-0


[Site "https://www.chess.com"]

[Event "Titled Tuesday Blitz February 14 Late 2023"]
[White "Bas Mas, Jose Joaquin"]
[Black "Papasimakopoulos, Alexandros"]
[WhiteFideId "22219064"]
[BlackFideId "4244125"]
[WhiteElo "2197"]
[BlackElo "2401"]
[Result "0-1"]
[Round "07"]
[TimeControl "180+2"]
[Date "2023.02.14"]
[WhiteClock "0:00:45"]
[BlackClock "0:00:47"]

1. e4 {[%clk 0:03:00]}  e6 {[%clk 0:02:28]} 2. d4 {[%clk 0:03:00]}  d5 {[%clk 0:02:28]} 3. Nd2 {[%clk 0:03:01]}  Nf6 {[%clk 0:02:28]} 4. e5 {[%clk 0:03:01]}  Nfd7 {[%clk 0:02:29]} 5. Bd3 {[%clk 0:03:02]}  c5 {[%clk 0:02:25]} 6. c3 {[%clk 0:03:02]}  Nc6 {[%clk 0:02:26]} 7. Ne2 {[%clk 0:03:02]}  cxd4 {[%clk 0:02:26]} 8. cxd4 {[%clk 0:03:03]}  f6 {[%clk 0:02:25]} 9. exf6 {[%clk 0:03:04]}  Nxf6 {[%clk 0:02:24]} 10. O-O {[%clk 0:03:04]}  Bd6 {[%clk 0:02:24]} 11. Nf3 {[%clk 0:03:04]}  Qc7 {[%clk 0:02:24]} 12. Bg5 {[%clk 0:03:04]}  O-O {[%clk 0:02:24]} 13. Bh4 {[%clk 0:03:03]}  Nh5 {[%clk 0:02:24]} 14. Qc2 {[%clk 0:03:02]}  h6 {[%clk 0:02:24]} 15. Bh7+ {[%clk 0:02:57]}  Kh8 {[%clk 0:02:24]} 16. Bg6 {[%clk 0:02:58]}  Rxf3 {[%clk 0:02:24]} 17. Bxh5 {[%clk 0:02:54]}  Bxh2+ {[%clk 0:02:24]} 18. Kh1 {[%clk 0:02:53]}  Rf5 {[%clk 0:02:25]} 19. Bg6 {[%clk 0:02:53]}  Bd6 {[%clk 0:02:26]} 20. Bxf5 {[%clk 0:02:50]}  exf5 {[%clk 0:02:26]} 21. Rae1 {[%clk 0:02:44]}  Qf7 {[%clk 0:02:26]} 22. Bg3 {[%clk 0:02:40]}  Bb4 {[%clk 0:02:27]} 23. Nc3 {[%clk 0:02:40]}  Bd7 {[%clk 0:02:09]} 24. Be5 {[%clk 0:02:23]}  Ba5 {[%clk 0:02:05]} 25. Kg1 {[%clk 0:02:16]}  f4 {[%clk 0:02:03]} 26. Qb3 {[%clk 0:02:12]}  f3 {[%clk 0:01:52]} 27. Qxd5 {[%clk 0:01:59]}  Qxd5 {[%clk 0:01:46]} 28. Nxd5 {[%clk 0:01:59]}  fxg2 {[%clk 0:01:44]} 29. Kxg2 {[%clk 0:01:59]}  Bxe1 {[%clk 0:01:44]} 30. Rxe1 {[%clk 0:01:59]}  Nxe5 {[%clk 0:01:35]} 31. Rxe5 {[%clk 0:01:50]}  Bc6 {[%clk 0:01:35]} 32. Kg3 {[%clk 0:01:45]}  Rd8 {[%clk 0:01:32]} 33. Ne7 {[%clk 0:01:40]}  Rxd4 {[%clk 0:01:27]} 34. Nxc6 {[%clk 0:01:40]}  bxc6 {[%clk 0:01:27]} 35. Ra5 {[%clk 0:01:40]}  Rd7 {[%clk 0:01:21]} 36. b4 {[%clk 0:01:36]}  Kh7 {[%clk 0:01:11]} 37. Ra6 {[%clk 0:01:32]}  Rc7 {[%clk 0:01:09]} 38. a4 {[%clk 0:01:29]}  h5 {[%clk 0:01:09]} 39. Kh4 {[%clk 0:01:24]}  g6 {[%clk 0:01:07]} 40. Kg5 {[%clk 0:01:23]}  Rf7 {[%clk 0:01:06]} 41. Rxc6 {[%clk 0:01:19]}  Rf5+ {[%clk 0:01:05]} 42. Kh4 {[%clk 0:01:17]}  Rxf2 {[%clk 0:01:05]} 43. Kg3 {[%clk 0:01:14]}  Rf7 {[%clk 0:00:59]} 44. b5 {[%clk 0:01:14]}  Kh6 {[%clk 0:00:58]} 45. a5 {[%clk 0:01:11]}  Rd7 {[%clk 0:00:58]} 46. Rc5 {[%clk 0:01:07]}  Rd3+ {[%clk 0:00:57]} 47. Kf4 {[%clk 0:01:07]}  Rb3 {[%clk 0:00:51]} 48. Ke5 {[%clk 0:01:00]}  h4 {[%clk 0:00:52]} 49. Kd6 {[%clk 0:01:00]}  h3 {[%clk 0:00:51]} 50. Kc6 {[%clk 0:00:54]}  g5 {[%clk 0:00:51]} 51. b6 {[%clk 0:00:50]}  axb6 {[%clk 0:00:51]} 52. axb6 {[%clk 0:00:51]}  h2 {[%clk 0:00:47]} 53. Rc1 {[%clk 0:00:51]}  g4 {[%clk 0:00:48]} 54. b7 {[%clk 0:00:45]}  g3 {[%clk 0:00:47]} 0-1


[Site "https://www.chess.com"]

[Event "Titled Tuesday Blitz February 14 Late 2023"]
[White "Seletsky, Grigory"]
[Black "Martynov, Pavel"]
[WhiteFideId "14112191"]
[BlackFideId "4101260"]
[WhiteElo "2259"]
[BlackElo "2414"]
[Result "0-1"]
[Round "07"]
[TimeControl "180+2"]
[Date "2023.02.14"]
[WhiteClock "0:00:04"]
[BlackClock "0:00:05"]

1. e4 {[%clk 0:02:59]}  c5 {[%clk 0:02:59]} 2. Nc3 {[%clk 0:02:56]}  e6 {[%clk 0:02:58]} 3. Nf3 {[%clk 0:02:53]}  Nc6 {[%clk 0:02:57]} 4. Bb5 {[%clk 0:02:51]}  Nge7 {[%clk 0:02:48]} 5. O-O {[%clk 0:02:50]}  a6 {[%clk 0:02:48]} 6. Bxc6 {[%clk 0:02:49]}  Nxc6 {[%clk 0:02:49]} 7. d4 {[%clk 0:02:49]}  cxd4 {[%clk 0:02:50]} 8. Nxd4 {[%clk 0:02:50]}  Qc7 {[%clk 0:02:49]} 9. Re1 {[%clk 0:02:51]}  Be7 {[%clk 0:02:44]} 10. Nd5 {[%clk 0:02:36]}  exd5 {[%clk 0:02:44]} 11. exd5 {[%clk 0:02:36]}  O-O {[%clk 0:02:44]} 12. dxc6 {[%clk 0:02:31]}  dxc6 {[%clk 0:02:44]} 13. Qf3 {[%clk 0:02:23]}  Bf6 {[%clk 0:02:38]} 14. c3 {[%clk 0:02:16]}  c5 {[%clk 0:02:35]} 15. Nf5 {[%clk 0:02:12]}  Bxf5 {[%clk 0:02:24]} 16. Qxf5 {[%clk 0:02:10]}  b5 {[%clk 0:02:15]} 17. Bf4 {[%clk 0:02:02]}  Qc6 {[%clk 0:02:14]} 18. Be5 {[%clk 0:01:41]}  Bxe5 {[%clk 0:01:55]} 19. Rxe5 {[%clk 0:01:39]}  Rac8 {[%clk 0:01:56]} 20. Rae1 {[%clk 0:01:33]}  h6 {[%clk 0:01:55]} 21. h3 {[%clk 0:01:32]}  a5 {[%clk 0:01:47]} 22. R1e3 {[%clk 0:01:28]}  a4 {[%clk 0:01:42]} 23. a3 {[%clk 0:01:08]}  b4 {[%clk 0:01:40]} 24. c4 {[%clk 0:01:01]}  Qb6 {[%clk 0:01:21]} 25. Rg3 {[%clk 0:00:54]}  Rc6 {[%clk 0:01:11]} 26. Qe4 {[%clk 0:00:43]}  bxa3 {[%clk 0:00:37]} 27. bxa3 {[%clk 0:00:42]}  Re6 {[%clk 0:00:27]} 28. Rxe6 {[%clk 0:00:27]}  Qxe6 {[%clk 0:00:27]} 29. Qxe6 {[%clk 0:00:27]}  fxe6 {[%clk 0:00:28]} 30. Re3 {[%clk 0:00:26]}  Rf4 {[%clk 0:00:26]} 31. Rxe6 {[%clk 0:00:21]}  Rxc4 {[%clk 0:00:27]} 32. Ra6 {[%clk 0:00:18]}  Kf7 {[%clk 0:00:24]} 33. g4 {[%clk 0:00:17]}  Rc3 {[%clk 0:00:13]} 34. Kg2 {[%clk 0:00:17]}  Rxa3 {[%clk 0:00:13]} 35. Rc6 {[%clk 0:00:16]}  Rc3 {[%clk 0:00:13]} 36. Ra6 {[%clk 0:00:16]}  a3 {[%clk 0:00:13]} 37. f3 {[%clk 0:00:14]}  Rc2+ {[%clk 0:00:12]} 38. Kg3 {[%clk 0:00:15]}  a2 {[%clk 0:00:12]} 39. h4 {[%clk 0:00:15]}  c4 {[%clk 0:00:12]} 40. Kf4 {[%clk 0:00:14]}  c3 {[%clk 0:00:13]} 41. Ke3 {[%clk 0:00:13]}  Rb2 {[%clk 0:00:08]} 42. Kd3 {[%clk 0:00:07]}  c2 {[%clk 0:00:08]} 43. Ra7+ {[%clk 0:00:06]}  Kg8 {[%clk 0:00:05]} 44. Kd2 {[%clk 0:00:04]}  Rb1 {[%clk 0:00:05]} 0-1


[Site "https://www.chess.com"]